fUSD/lending_fUSD_20250423
["ID","MTS","AMOUNT","RATE_DAILY","PERIOD"]
[358707341,1745397056209,-72042.03488726,0.00046,2]
[358707342,1745397056219,-3175.0,0.00046,120]
[358707343,1745397056229,-319.00000646,0.00046,30]
[358707344,1745397056239,-213.10817793,0.00046,30]
[358707345,1745397056249,-243.72223942,0.00046,120]
[358707346,1745397056258,-2290.0,0.00046,60]
[358707347,1745397056268,-111486.1573852,0.00046,30]
[358707348,1745397056278,-2000.0,0.00046,120]
[358707349,1745397056290,-1360.84331242,0.00046,120]
[358707350,1745397056299,-151.0,0.00046,14]
[358707351,1745397056309,-180.54,0.00046,2]
[358707352,1745397056319,-181.360655,0.00046,14]
[358707353,1745397056328,-874.166081,0.00046,14]
[358707354,1745397056338,-874.166081,0.00046,14]
[358707355,1745397056348,-151.0,0.00046,14]
[358707356,1745397056357,-151.0,0.00046,14]
[358707357,1745397056367,-909.565525,0.00046,14]
[358707358,1745397056377,-909.565525,0.00046,14]
[358707359,1745397056387,-151.0,0.00046,14]
[358707360,1745397056397,-151.0,0.00046,14]
[358707361,1745397056406,-840.550709,0.00046,14]
[358707362,1745397056415,-840.550709,0.00046,14]
[358707363,1745397056425,-151.0,0.00046,14]
[358707364,1745397056433,-155.159576,0.00046,14]
[358707365,1745397056443,-501.314133,0.00046,14]
[358707366,1745397056452,-152.704056,0.00046,14]
[358707367,1745397056462,-152.704056,0.00046,14]
[358707368,1745397056471,-185.809348,0.00046,14]
[358707369,1745397056481,-185.809348,0.00046,14]
[358707370,1745397056490,-151.0,0.00046,14]
[358707371,1745397056501,-4500.0,0.00046,2]
[358707372,1745397056511,-244.18517739,0.00046,2]
[358707373,1745397056520,-500.0,0.00046028,2]
[358707374,1745397056531,-2000.0,0.00046034,120]
[358707375,1745397056540,-1150.78,0.00046036,30]
[358707376,1745397056550,-375.17,0.00046036,30]
[358707377,1745397056559,-1150.78,0.00046036,30]
[358707378,1745397056569,-1150.78,0.00046036,30]
[358707379,1745397056579,-1150.78,0.00046036,30]
[358707380,1745397056588,-1150.78,0.00046036,30]
[358707381,1745397056599,-152.0,0.00046114,5]
[358707382,1745397056608,-399.87619122,0.00046164,30]
[358707383,1745397056618,-2110.0,0.00046213,30]
[358707384,1745397056628,-2000.0,0.00046216,2]
[358707385,1745397056638,-1000.0,0.00046217,2]
[358707386,1745397056648,-561.63,0.00046301,2]
[358707387,1745397056658,-500.0,0.00046301,30]
[358707388,1745397056667,-200.0,0.00046349,2]
[358707389,1745397056677,-399.87619122,0.00046356,30]
[358707390,1745397056687,-963.0,0.00046359,10]
[358707391,1745397056696,-500.0,0.00046372,30]
[358707392,1745397056706,-79516.286427,0.00046398,10]
[358707393,1745397056715,-181.360655,0.00046398,14]
[358707394,1745397056725,-181.360653,0.00046398,14]
[358707395,1745397056734,-874.166081,0.00046398,14]
[358707396,1745397056744,-874.166079,0.00046398,14]
[358707397,1745397056754,-151.0,0.00046398,14]
[358707398,1745397056764,-151.0,0.00046398,14]
[358707399,1745397056774,-909.565525,0.00046398,14]
[358707400,1745397056785,-909.565524,0.00046398,14]
[358707401,1745397056795,-151.0,0.00046398,14]
[358707402,1745397056805,-734.670196,0.00046398,14]
[358707403,1745397056815,-840.550709,0.00046398,14]
[358707404,1745397056824,-840.550703,0.00046398,14]
[358707405,1745397056833,-500.0,0.00046443,30]
[358707406,1745397056842,-36060.0,0.00046463,7]
[358707407,1745397056851,-151.0,0.00046463,14]
[358707408,1745397056861,-1333.0,0.00046466,120]
[358707409,1745397056871,-963.7546,0.00046476,3]
[358707410,1745397056881,-2000.0,0.00046476,3]
[358707411,1745397056891,-2000.0,0.00046476,3]
[358707412,1745397056902,-640.69932948,0.00046489,2]
[358707413,1745397056911,-151.0,0.0004649,14]
[358707414,1745397056921,-152.704056,0.0004649,14]
[358707415,1745397056930,-152.704049,0.0004649,14]
[358707416,1745397056940,-185.809348,0.0004649,14]
[358707417,1745397056949,-185.80934,0.0004649,14]
[358707418,1745397056959,-151.0,0.0004649,14]
[358707419,1745397056968,-151.0,0.00046491,14]
[358707420,1745397056979,-1000.0,0.00046499,120]
[358707421,1745397056989,-4643.86307268,0.000465,120]
[358707422,1745397056999,-2061.46,0.000465,14]
[358707423,1745397057009,-479.26132601,0.000465,2]
[358707424,1745397057019,-500.0,0.00046514,30]
[358707425,1745397057029,-160.0,0.00046516,90]
[358707426,1745397057039,-399.87619122,0.00046548,30]
[358707427,1745397057049,-1500.0,0.0004656,120]
[358707428,1745397057058,-189.0,0.00046561,30]
[358707429,1745397057067,-5413.56,0.00046564,30]
[358707430,1745397057078,-500.0,0.00046575,120]
[358707431,1745397057087,-500.0,0.00046575,120]
[358707432,1745397057096,-500.0,0.00046575,120]
[358707433,1745397057107,-500.0,0.00046575,120]
[358707434,1745397057118,-500.0,0.00046575,120]
[358707435,1745397057127,-500.0,0.00046575,120]
[358707436,1745397057137,-500.0,0.00046575,120]
[358707437,1745397057146,-500.0,0.00046575,120]
[358707438,1745397057158,-500.0,0.00046575,120]
[358707439,1745397057167,-500.0,0.00046575,120]
[358707440,1745397057176,-500.0,0.00046575,120]
[358707441,1745397057188,-500.0,0.00046575,120]
[358707442,1745397057197,-500.0,0.00046575,120]
[358707443,1745397057206,-500.0,0.00046575,120]
[358707444,1745397057288,-500.0,0.00046575,120]
[358707445,1745397057297,-500.0,0.00046575,120]
[358707446,1745397057307,-500.0,0.00046575,120]
[358707447,1745397057316,-500.0,0.00046575,120]
[358707448,1745397057325,-500.0,0.00046575,120]
[358707449,1745397057335,-500.0,0.00046575,120]
[358707450,1745397057344,-589.54097343,0.00046575,120]
[358707451,1745397057354,-500.0,0.00046575,120]
[358707452,1745397057363,-500.0,0.00046575,120]
[358707453,1745397057373,-1000.35,0.00046575,120]
[358707454,1745397057383,-150.0,0.00046575,120]
[358707455,1745397057392,-219.230751,0.00046575,14]
[358707456,1745397057401,-219.230751,0.00046575,14]
[358707457,1745397057410,-219.230751,0.00046575,14]
[358707458,1745397057420,-219.230751,0.00046575,14]
[358707459,1745397057429,-219.230751,0.00046575,14]
[358707460,1745397057438,-219.230751,0.00046575,14]
[358707461,1745397057447,-219.230751,0.00046575,14]
[358707462,1745397057457,-219.230751,0.00046575,14]
[358707463,1745397057466,-219.230751,0.00046575,14]
[358707464,1745397057475,-219.230751,0.00046575,14]
[358707465,1745397057483,-219.230751,0.00046575,14]
[358707466,1745397057493,-219.230751,0.00046575,14]
[358707467,1745397057502,-219.230751,0.00046575,14]
[358707468,1745397057511,-219.230751,0.00046575,14]
[358707469,1745397057520,-219.230751,0.00046575,14]
[358707470,1745397057529,-219.230751,0.00046575,14]
[358707471,1745397057538,-219.230751,0.00046575,14]
[358707472,1745397057547,-219.230751,0.00046575,14]
[358707473,1745397057556,-219.230751,0.00046575,14]
[358707474,1745397057565,-219.230743,0.00046575,14]
[358707475,1745397057575,-300.0,0.00046575,20]
[358707476,1745397057585,-153.67,0.00046575,2]
[358707477,1745397057595,-514.9645842,0.00046575,5]
[358707478,1745397057603,-241.68099963,0.0004658,7]
[358707479,1745397057612,-587.89717874,0.0004658,7]
[358707480,1745397057622,-27626.7633575,0.0004658,7]
[358707481,1745397057631,-5000.0,0.0004658,30]
[358707482,1745397057641,-425.1276402,0.00046582,30]
[358707483,1745397057650,-279.35559065,0.00046585,30]
[358707484,1745397057659,-500.0,0.00046585,120]
[358707485,1745397057668,-200.0,0.000466,67]
[358707486,1745397057678,-1510.7,0.000466,2]
[358707487,1745397057687,-307.65464971,0.000466,15]
[358707488,1745397057696,-663.34532651,0.000466,2]
[358707489,1745397057705,-205.72885803,0.000466,2]
[358707490,1745397057714,-1772.80416616,0.000466,2]
[358707491,1745397057723,-500.0,0.00046635,30]
[358707492,1745397057733,-3590.0,0.0004664,30]
[358707493,1745397057742,-3000.06877618,0.00046649,30]
[358707494,1745397057751,-468.474933,0.00046652,120]
[358707495,1745397057761,-508.767049,0.00046652,120]
[358707496,1745397057770,-200.0,0.00046652,120]
[358707497,1745397057779,-500.0,0.00046657,120]
[358707498,1745397057788,-855.4952055,0.00046668,2]
[358707499,1745397057798,-968.4328294,0.00046668,2]
[358707500,1745397057806,-1081.3704534,0.00046668,2]
[358707501,1745397057816,-1194.3080773,0.00046668,2]
[358707502,1745397057825,-64336.487505,0.00046668,2]
[358707503,1745397057834,-72829.8256133,0.00046668,2]
[358707504,1745397057843,-81323.1637216,0.00046668,2]
[358707505,1745397057852,-89816.5018299,0.00046668,2]
[358707506,1745397057862,-5777.0644597,0.00046668,2]
[358707507,1745397057871,-6539.7197372,0.00046668,2]
[358707508,1745397057880,-7302.3750147,0.00046668,2]
[358707509,1745397057889,-8065.0302921,0.00046668,2]
[358707510,1745397057899,-2729.5008445,0.00046668,2]
[358707511,1745397057909,-3064.8795837,0.00046668,2]
[358707512,1745397057919,-3400.2583229,0.00046668,2]
[358707513,1745397057929,-3735.637062,0.00046668,2]
[358707514,1745397057938,-760.895396,0.0004667,3]
[358707515,1745397057948,-400.0,0.0004667,3]
[358707516,1745397057958,-6418.44360545,0.00046693,19]
[358707517,1745397057967,-123799.87864303,0.000467,2]
[358707518,1745397057976,-12189.56352851,0.000467,20]
[358707519,1745397057986,-99834.26031913,0.000467,2]
[358707520,1745397057995,-560.66116654,0.000467,16]
[358707521,1745397058005,-4047.70486951,0.000467,2]
[358707522,1745397058014,-4852.9784008,0.000467,10]
[358707523,1745397058024,-10232.90133248,0.000467,7]
[358707524,1745397058035,-27489.80997828,0.000467,2]
[358707525,1745397058044,-1500000.0,0.000467,120]
[358707526,1745397058054,-1097.51215137,0.000467,120]
[358707527,1745397058064,-300.0,0.000467,120]
[358707528,1745397058074,-6103.47630839,0.000467,30]
[358707529,1745397058083,-435000.0,0.000467,120]
[358707530,1745397058093,-4992.77914373,0.000467,120]
[358707531,1745397058102,-1360.84331242,0.000467,120]
[358707532,1745397058113,-314.0,0.000467,120]
[358707533,1745397058125,-500.0,0.000467,30]
[358707534,1745397058135,-500.0,0.000467,30]
[358707535,1745397058145,-500.0,0.000467,30]
[358707536,1745397058154,-512.79611176,0.000467,30]
[358707537,1745397058163,-50000.0,0.000467,30]
[358707538,1745397058173,-50000.0,0.000467,31]
[358707539,1745397058183,-50000.0,0.000467,32]
[358707540,1745397058194,-50000.0,0.000467,33]
[358707541,1745397058203,-500.0,0.000467,30]
[358707542,1745397058213,-500.0,0.000467,30]
[358707543,1745397058223,-521.75705108,0.000467,30]
[358707544,1745397058232,-50000.0,0.000467,34]
[358707545,1745397058242,-641.53,0.000467,30]
[358707546,1745397058251,-641.53,0.000467,30]
[358707547,1745397058260,-641.53,0.000467,30]
[358707548,1745397058269,-641.53,0.000467,30]
[358707549,1745397058279,-641.53,0.000467,30]
[358707550,1745397058288,-641.53,0.000467,30]
[358707551,1745397058298,-641.53,0.000467,30]
[358707552,1745397058307,-641.53,0.000467,30]
[358707553,1745397058316,-641.53,0.000467,30]
[358707554,1745397058326,-641.53,0.000467,30]
[358707555,1745397058336,-641.53,0.000467,30]
[358707556,1745397058346,-641.53,0.000467,30]
[358707557,1745397058355,-641.53,0.000467,30]
[358707558,1745397058364,-641.53,0.000467,30]
[358707559,1745397058373,-500.0,0.000467,30]
[358707560,1745397058382,-641.53,0.000467,30]
[358707561,1745397058392,-641.53,0.000467,30]
[358707562,1745397058401,-500.0,0.000467,30]
[358707563,1745397058410,-641.53,0.000467,30]
[358707564,1745397058420,-641.53,0.000467,30]
[358707565,1745397058429,-641.53,0.000467,30]
[358707566,1745397058439,-641.53,0.000467,30]
[358707567,1745397058449,-641.53,0.000467,30]
[358707568,1745397058459,-641.53,0.000467,30]
[358707569,1745397058468,-641.53,0.000467,30]
[358707570,1745397058477,-641.71278673,0.000467,30]
[358707571,1745397058487,-549.95755434,0.000467,30]
[358707572,1745397058496,-500.0,0.000467,30]
[358707573,1745397058506,-500.0,0.000467,30]
[358707574,1745397058515,-500.0,0.000467,30]
[358707575,1745397058524,-500.0,0.000467,30]
[358707576,1745397058534,-500.0,0.000467,30]
[358707577,1745397058543,-500.0,0.000467,30]
[358707578,1745397058553,-500.0,0.000467,30]
[358707579,1745397058562,-500.0,0.000467,30]
[358707580,1745397058572,-483.86902085,0.000467,30]
[358707581,1745397058581,-500.0,0.000467,30]
[358707582,1745397058591,-500.0,0.000467,30]
[358707583,1745397058600,-500.0,0.000467,30]
[358707584,1745397058610,-500.0,0.000467,30]
[358707585,1745397058619,-500.0,0.000467,30]
[358707586,1745397058629,-500.0,0.000467,30]
[358707587,1745397058638,-500.0,0.000467,30]
[358707588,1745397058648,-500.0,0.000467,30]
[358707589,1745397058657,-500.0,0.000467,30]
[358707590,1745397058667,-500.0,0.000467,30]
[358707591,1745397058676,-500.0,0.000467,30]
[358707592,1745397058686,-500.0,0.000467,30]
[358707593,1745397058695,-270.84671335,0.000467,30]
[358707594,1745397058705,-500.0,0.000467,30]
[358707595,1745397058715,-500.0,0.000467,30]
[358707596,1745397058725,-500.0,0.000467,30]
[358707597,1745397058735,-254.51476197,0.000467,30]
[358707598,1745397058744,-514.18685,0.000467,30]
[358707599,1745397058754,-500.0,0.000467,30]
[358707600,1745397058764,-500.0,0.000467,30]
[358707601,1745397058775,-500.0,0.000467,30]
[358707602,1745397058784,-900.34,0.000467,30]
[358707603,1745397058794,-338.12199857,0.000467,30]
[358707604,1745397058803,-900.34,0.000467,30]
[358707605,1745397058812,-900.34,0.000467,30]
[358707606,1745397058822,-900.34,0.000467,30]
[358707607,1745397058831,-900.34,0.000467,30]
[358707608,1745397058841,-900.34,0.000467,30]
[358707609,1745397058850,-900.34,0.000467,30]
[358707610,1745397058860,-900.34,0.000467,30]
[358707611,1745397058869,-900.34,0.000467,30]
[358707612,1745397058879,-900.34,0.000467,30]
[358707613,1745397058889,-900.34,0.000467,30]
[358707614,1745397058899,-900.34,0.000467,30]
[358707615,1745397058909,-900.34,0.000467,30]
[358707616,1745397058919,-900.34,0.000467,30]
[358707617,1745397058929,-900.34,0.000467,30]
[358707618,1745397058940,-900.34,0.000467,30]
[358707619,1745397058950,-500.0,0.000467,30]
[358707620,1745397058959,-900.34,0.000467,30]
[358707621,1745397058969,-500.0,0.000467,30]
[358707622,1745397058979,-500.0,0.000467,30]
[358707623,1745397058988,-900.34,0.000467,30]
[358707624,1745397058998,-500.0,0.000467,30]
[358707625,1745397059008,-900.34,0.000467,30]
[358707626,1745397059018,-499.40560064,0.000467,30]
[358707627,1745397059028,-500.0,0.000467,30]
[358707628,1745397059038,-500.0,0.000467,30]
[358707629,1745397059047,-900.34,0.000467,30]
[358707630,1745397059057,-500.0,0.000467,30]
[358707631,1745397059067,-900.34,0.000467,30]
[358707632,1745397059076,-500.0,0.000467,30]
[358707633,1745397059086,-900.34,0.000467,30]
[358707634,1745397059096,-500.0,0.000467,30]
[358707635,1745397059107,-900.34,0.000467,30]
[358707636,1745397059119,-500.0,0.000467,30]
[358707637,1745397059128,-624.23689046,0.000467,30]
[358707638,1745397059137,-900.47619208,0.000467,30]
[358707639,1745397059147,-500.0,0.000467,30]
[358707640,1745397059156,-159.21805442,0.000467,30]
[358707641,1745397059166,-500.0,0.000467,30]
[358707642,1745397059176,-500.0,0.000467,30]
[358707643,1745397059185,-500.0,0.000467,30]
[358707644,1745397059196,-500.0,0.000467,30]
[358707645,1745397059206,-500.0,0.000467,30]
[358707646,1745397059216,-500.0,0.000467,30]
[358707647,1745397059226,-161.30998241,0.000467,30]
[358707648,1745397059235,-516.33347421,0.000467,30]
[358707649,1745397059245,-500.0,0.000467,30]
[358707650,1745397059255,-500.0,0.000467,30]
[358707651,1745397059265,-500.0,0.000467,30]
[358707652,1745397059274,-500.0,0.000467,30]
[358707653,1745397059284,-576.21675155,0.000467,30]
[358707654,1745397059293,-500.0,0.000467,30]
[358707655,1745397059303,-530.74845357,0.000467,30]
[358707656,1745397059313,-500.0,0.000467,30]
[358707657,1745397059322,-549.2749275,0.000467,30]
[358707658,1745397059332,-524.04215421,0.000467,30]
[358707659,1745397059342,-510.11126348,0.000467,30]
[358707660,1745397059351,-509.21984148,0.000467,30]
[358707661,1745397059361,-500.0,0.000467,30]
[358707662,1745397059372,-500.0,0.000467,30]
[358707663,1745397059383,-500.0,0.000467,30]
[358707664,1745397059393,-500.0,0.000467,30]
[358707665,1745397059404,-500.0,0.000467,30]
[358707666,1745397059413,-500.0,0.000467,30]
[358707667,1745397059423,-374.45301483,0.000467,30]
[358707668,1745397059769,-125.54698517,0.000467,30]
[358707669,1745397059779,-167.3366229,0.000467,30]
[358707670,1745397059791,-332.6633771,0.000467,30]
[358707671,1745397059801,-12.51905399,0.000467,30]
[358707672,1745397059813,-495.19408153,0.000467,30]
[358707673,1745397059822,-500.0,0.000467,30]
[358707674,1745397059832,-500.0,0.000467,30]
[358707675,1745397059842,-500.0,0.000467,30]
[358707676,1745397059853,-500.0,0.000467,30]
[358707677,1745397059863,-500.0,0.000467,30]
[358707678,1745397059872,-307.43906872,0.000467,30]
[358707679,1745397059895,-200.372614,0.00030761,7]
[358707680,1745397059905,-1000.0,0.0003298,28]
[358707681,1745397059914,-192.56093128,0.000467,30]
[358707682,1745397059924,-189.08949299,0.000467,30]
[358707683,1745397059934,-502.62383715,0.000467,30]
[358707684,1745397059944,-500.0,0.000467,30]
[358707685,1745397059953,-500.0,0.000467,30]
[358707686,1745397059963,-539.17966299,0.000467,30]
[358707687,1745397059973,-500.0,0.000467,30]
[358707688,1745397059983,-500.0,0.000467,30]
[358707689,1745397059992,-500.0,0.000467,30]
[358707690,1745397060002,-500.0,0.000467,30]
[358707691,1745397060013,-6.94641071,0.000467,30]
[358707692,1745397060028,-493.05358929,0.000467,30]
[358707693,1745397060039,-500.0,0.000467,30]
[358707694,1745397060049,-500.0,0.000467,30]
[358707695,1745397060060,-500.0,0.000467,30]
[358707696,1745397060071,-500.0,0.000467,30]
[358707697,1745397060081,-500.0,0.000467,30]
[358707698,1745397060091,-500.0,0.000467,30]
[358707699,1745397060101,-510.53616618,0.000467,30]
[358707700,1745397060111,-500.0,0.000467,30]
[358707701,1745397060125,-500.0,0.000467,30]
[358707702,1745397060134,-500.0,0.000467,30]
[358707703,1745397060144,-500.0,0.000467,30]
[358707704,1745397060155,-500.0,0.000467,30]
[358707705,1745397060164,-260.28868052,0.000467,30]
[358707706,1745397060174,-500.0,0.000467,30]
[358707707,1745397060184,-403.66729154,0.000467,30]
[358707708,1745397060195,-389.53627252,0.000467,30]
[358707709,1745397060213,-193.96893701,0.000467,30]
[358707710,1745397060223,-500.0,0.000467,30]
[358707711,1745397060233,-500.0,0.000467,30]
[358707712,1745397060242,-500.0,0.000467,30]
[358707713,1745397060252,-500.0,0.000467,30]
[358707714,1745397060262,-500.0,0.000467,30]
[358707715,1745397060272,-164.89826715,0.000467,30]
[358707716,1745397060282,-502.35805342,0.000467,30]
[358707717,1745397060292,-518.09910805,0.000467,30]
[358707718,1745397060302,-120.67563437,0.000467,30]
[358707719,1745397060317,-359.69092575,0.000467,30]
[358707720,1745397060334,-200.372614,0.00033571,7]
[358707721,1745397060343,-19.63343988,0.000467,30]
[358707722,1745397060353,-500.0,0.000467,30]
[358707723,1745397060363,-225.49549876,0.000467,30]
[358707724,1745397060374,-512.67183875,0.000467,30]
[358707725,1745397060385,-500.0,0.000467,30]
[358707726,1745397060396,-500.0,0.000467,30]
[358707727,1745397060407,-500.0,0.000467,30]
[358707728,1745397060417,-500.0,0.000467,30]
[358707729,1745397060427,-564.32377773,0.000467,30]
[358707730,1745397060437,-500.0,0.000467,30]
[358707731,1745397060446,-477.45269948,0.000467,30]
[358707732,1745397060456,-500.0,0.000467,30]
[358707733,1745397060466,-622.90427634,0.000467,30]
[358707734,1745397060476,-417.69420162,0.000467,30]
[358707735,1745397060486,-500.0,0.000467,30]
[358707736,1745397060495,-500.0,0.000467,30]
[358707737,1745397060505,-500.0,0.000467,30]
[358707738,1745397060515,-500.0,0.000467,30]
[358707739,1745397060524,-500.0,0.000467,30]
[358707740,1745397060534,-500.0,0.000467,30]
[358707741,1745397060543,-500.0,0.000467,30]
[358707742,1745397060553,-500.0,0.000467,30]
[358707743,1745397060563,-500.0,0.000467,30]
[358707744,1745397060572,-500.0,0.000467,30]
[358707745,1745397060582,-500.0,0.000467,30]
[358707746,1745397060591,-500.0,0.000467,30]
[358707747,1745397060601,-500.0,0.000467,30]
[358707748,1745397060611,-500.0,0.000467,30]
[358707749,1745397060620,-500.0,0.000467,30]
[358707750,1745397060629,-500.0,0.000467,30]
[358707751,1745397060639,-500.0,0.000467,30]
[358707752,1745397060648,-500.0,0.000467,30]
[358707753,1745397060658,-500.0,0.000467,30]
[358707754,1745397060668,-500.0,0.000467,30]
[358707755,1745397060677,-500.0,0.000467,30]
[358707756,1745397060687,-500.0,0.000467,30]
[358707757,1745397060696,-500.0,0.000467,30]
[358707758,1745397060706,-500.0,0.000467,30]
[358707759,1745397060716,-500.0,0.000467,30]
[358707760,1745397060726,-361.35165344,0.000467,30]
[358707761,1745397060991,-153.903,0.00027571,2]
[358707762,1745397061000,-535.57115361,0.0003298,28]
[358707763,1745397061019,-410.30174383,0.0003298,28]
[358707764,1745397061035,-54.12710256,0.0003298,28]
[358707765,1745397061045,-1000.0,0.0003298,28]
[358707766,1745397061055,-1000.0,0.0003298,28]
[358707767,1745397061065,-1000.0,0.0003298,28]
[358707768,1745397061075,-1000.0,0.0003298,28]
[358707769,1745397061084,-200.372614,0.0003593,7]
[358707770,1745397061094,-200.372605,0.00039,14]
[358707771,1745397061104,-138.64834656,0.000467,30]
[358707772,1745397061116,-631.34271965,0.000467,30]
[358707773,1745397061126,-500.0,0.000467,30]
[358707774,1745397061135,-500.0,0.000467,30]
[358707775,1745397061146,-500.0,0.000467,30]
[358707776,1745397061155,-500.0,0.000467,30]
[358707777,1745397061165,-500.0,0.000467,30]
[358707778,1745397061174,-500.0,0.000467,30]
[358707779,1745397061185,-176.26557787,0.000467,30]
[358707780,1745397061195,-500.0,0.000467,30]
[358707781,1745397061204,-500.0,0.000467,30]
[358707782,1745397061214,-823.2,0.000467,30]
[358707783,1745397061224,-823.2,0.000467,30]
[358707784,1745397061233,-500.0,0.000467,30]
[358707785,1745397061242,-823.2,0.000467,30]
[358707786,1745397061252,-500.0,0.000467,30]
[358707787,1745397061262,-823.2,0.000467,30]
[358707788,1745397061271,-500.0,0.000467,30]
[358707789,1745397061282,-823.2,0.000467,30]
[358707790,1745397061291,-500.0,0.000467,30]
[358707791,1745397061301,-823.2,0.000467,30]
[358707792,1745397061311,-500.0,0.000467,30]
[358707793,1745397061321,-823.2,0.000467,30]
[358707794,1745397061330,-500.0,0.000467,30]
[358707795,1745397061340,-823.2,0.000467,30]
[358707796,1745397061349,-500.0,0.000467,30]
[358707797,1745397061359,-823.2,0.000467,30]
[358707798,1745397061368,-524.80158682,0.000467,30]
[358707799,1745397061377,-823.2,0.000467,30]
[358707800,1745397061386,-823.2,0.000467,30]
[358707801,1745397061396,-823.2,0.000467,30]
[358707802,1745397061405,-823.2,0.000467,30]
[358707803,1745397061415,-823.2,0.000467,30]
[358707804,1745397061424,-823.2,0.000467,30]
[358707805,1745397061433,-823.2,0.000467,30]
[358707806,1745397061443,-823.2,0.000467,30]
[358707807,1745397061452,-500.0,0.000467,30]
[358707808,1745397061461,-823.2,0.000467,30]
[358707809,1745397061471,-500.0,0.000467,30]
[358707810,1745397061480,-823.2,0.000467,30]
[358707811,1745397061489,-500.0,0.000467,30]
[358707812,1745397061499,-823.2,0.000467,30]
[358707813,1745397061508,-596.48061608,0.000467,30]
[358707814,1745397061518,-500.0,0.000467,30]
[358707815,1745397061527,-823.2,0.000467,30]
[358707816,1745397061538,-500.0,0.000467,30]
[358707817,1745397061547,-823.2,0.000467,30]
[358707818,1745397061556,-500.0,0.000467,30]
[358707819,1745397061565,-823.2,0.000467,30]
[358707820,1745397061575,-500.0,0.000467,30]
[358707821,1745397061584,-823.36194838,0.000467,30]
[358707822,1745397061593,-500.0,0.000467,30]
[358707823,1745397061603,-500.0,0.000467,30]
[358707824,1745397061613,-500.0,0.000467,30]
[358707825,1745397061622,-500.0,0.000467,30]
[358707826,1745397061632,-527.67925352,0.000467,30]
[358707827,1745397061642,-528.94231034,0.000467,30]
[358707828,1745397061651,-500.0,0.000467,30]
[358707829,1745397061661,-500.0,0.000467,30]
[358707830,1745397061671,-500.0,0.000467,30]
[358707831,1745397061680,-500.0,0.000467,30]
[358707832,1745397061690,-500.0,0.000467,30]
[358707833,1745397061699,-500.0,0.000467,30]
[358707834,1745397061708,-500.0,0.000467,30]
[358707835,1745397061718,-500.0,0.000467,30]
[358707836,1745397061728,-619.60129716,0.000467,30]
[358707837,1745397061737,-500.0,0.000467,30]
[358707838,1745397061747,-503.24003236,0.000467,30]
[358707839,1745397061757,-593.74,0.000467,30]
[358707840,1745397061767,-593.74,0.000467,30]